Workbook

Sheet Sheet1 (2)
A1: 生产经营物资需求计划明细表
A2: 填报单位：靖远煤业集团刘化化工有限公司 | M2: 2025-12-15
A3: 序号 | B3: 物料编码 | C3: 物料名称 | D3: 规格型号 | E3: 主机型号 | F3: 图号 | G3: 技术参数 | H3: 计量 单位 | I3: 数量 | J3: 计划 单价 | K3: 计划金额 | L3: 预算 单价 | M3: 预算金额 | N3: 需求单位 | O3: 需求时间 | P3: 备注
A4: 214 | C4: 中水单元保安过滤器滤芯 | D4: 40"，5μm，PP大流量折叠滤芯，外压式 | H4: 支 | I4: 32 | L4: 165.00 | M4: =L4*I4 -> 5280.00 | O4: 2026.01
A5: 215 | C5: 零排单元保安过滤器滤芯 | D5: 40"，5μm，PP大流量折叠滤芯，内压式 | H5: 支 | I5: 30 | L5: 165.00 | M5: 4950.00 | O5: 2026.01
A6: 216 | C6: 一级保安过滤器滤芯 | D6: ∅150-1020-5us、加强型 | H6: 支 | I6: 96 | L6: 165.00 | M6: 15840.00 | O6: 2026.01
A7: 217 | C7: 二级保安过滤器滤芯 | D7: ∅150-1020-5us、加强型 | H7: 支 | I7: 20 | L7: 165.00 | M7: 3300.00 | O7: 2026.01
A8: 218 | C8: 微孔过滤器滤芯 | D8: ∅150-1020-5us、加强型 | H8: 支 | I8: 24 | L8: 165.00 | M8: 3960.00 | O8: 2026.01
A9: 219 | C9: 不锈钢挂片 | D9: Ι型 | H9: 片 | I9: 20 | L9: 20.00 | M9: 400.00 | O9: 2026.01
A10: 220 | C10: 铁丝 | D10: 8# | H10: 公斤 | I10: 20 | L10: 8.50 | M10: 170.00 | O10: 2026.01
A11: 221 | C11: 硅表试剂组 | D11: 190-B0-011 | H11: 组 | I11: 1 | L11: 9000.00 | M11: 9000.00 | O11: 2026.01
A12: 222 | C12: 1056硅标准溶液（10ug/ml） | D12: 190-B0-021-01（每瓶60ml） | H12: 瓶 | I12: 1 | L12: 8500.00 | M12: 8500.00 | O12: 2026.01
A13: 223 | C13: 超高分子量聚乙烯绳 | H13: 米 | I13: 100 | L13: 8.50 | M13: 850.00 | O13: 2026.01
A14: 224 | C14: 抽水带 | D14: DN100 耐压加厚（带消防接头） | H14: 米 | I14: 200 | L14: 16.00 | M14: 3200.00 | O14: 2026.01
A15: 225 | C15: 抽水带 | D15: 10-65-25 耐压加厚（带消防接头） | H15: 米 | I15: 150 | L15: 16.00 | M15: 2400.00 | O15: 2026.01
A16: 226 | C16: 德力西美工刀 | D16: 重型两用伸缩刀 | H16: 个 | I16: 2 | L16: 25.00 | M16: 50.00 | O16: 2026.01
A17: 227 | C17: 柱塞泵 | D17: 聚光科技 SIA-3000(cod) | H17: 台 | I17: 2 | L17: 5000.00 | M17: 10000.00 | O17: 2026.01
A18: 228 | C18: 臭氧发生器进气滤芯 | D18: YUKA（AA）007 | H18: 只 | I18: 2 | L18: 1000.00 | M18: 2000.00 | O18: 2026.01
A19: 229 | C19: 2分直通接头 | D19: 2分外牙（12.5mm）转2分管（6.5mm）快速直通接头，含O型圈，塑料 | H19: 个 | I19: 100 | L19: 10.00 | M19: 1000.00 | O19: 2026.01
A20: 230 | C20: PU高透明软管 | D20: PU高透明软管 6*4mm | H20: 米 | I20: 100 | L20: 8.50 | M20: 850.00 | O20: 2026.01
A21: 231 | C21: 快插接头 | D21: PC8-02 接气管外径8mm，螺纹2分（1/4） | H21: 个 | I21: 30 | L21: 5.00 | M21: 150.00 | O21: 2026.01
A22: 232 | C22: 快插接头 | D22: PC8-04 接气管外径8mm，螺纹4分（1/2） | H22: 个 | I22: 30 | L22: 5.00 | M22: 150.00 | O22: 2026.01
A23: 233 | C23: 塑料量筒 | D23: 500mL | H23: 个 | I23: 4 | L23: 25.00 | M23: 100.00 | O23: 2026.01
A24: 234 | C24: 气管快速接头 | D24: 4分外丝*12mm气管 | H24: 个 | I24: 20 | L24: 5.00 | M24: 100.00 | O24: 2026.01
A25: 235 | C25: 透明高压软管 | D25: 12mm*8mm、耐压10kg/cm2 | H25: 米 | I25: 20 | L25: 13.50 | M25: 270.00 | O25: 2026.01
A26: 236 | C26: 钢丝透明软管 | D26: DN25 | H26: 米 | I26: 50 | L26: 8.50 | M26: 425.00 | O26: 2026.01
A27: 237 | C27: 滤网 | D27: 规格型号：RSR200H 设备编号：NO.72302296A | H27: 个 | I27: 3 | L27: 1000.00 | M27: 3000.00 | O27: 2026.01
A28: 238 | C28: 镀锌铁丝 | D28: 10号镀锌铁丝 | H28: 公斤 | I28: 300 | L28: 8.50 | M28: 2550.00 | O28: 2026.01
A29: 239 | C29: PH试纸 | D29: 每本80条，测量精度1-14 | H29: 盒 | I29: 1 | L29: 75.00 | M29: 75.00 | O29: 2026.01
A30: 240 | C30: 棘轮扳手套组 | D30: 成套棘轮扳手套组，内含如下： 套筒：17、19、24、27mm 多向接头、加长杆 | H30: 套 | I30: 1 | L30: 650.00 | M30: 650.00 | O30: 2026.01
A31: 241 | C31: 老虎钳 | D31: 200mm | H31: 把 | I31: 2 | L31: 75.00 | M31: 150.00 | O31: 2026.01
A32: 242 | C32: 电子磅秤 | D32: 100kg；可90°折叠， | H32: 台 | I32: 1 | L32: 650.00 | M32: 650.00 | O32: 2026.01
A33: 243 | C33: 全不锈钢耐震 弹簧压力表 | D33: 表盘大小：Φ100mm； 测量范围：0～40MPa； 精度等级：1.6； 连接形式：螺纹连接（M20×1.5） | H33: 块 | I33: 1 | L33: 240.00 | M33: 240.00 | O33: 2026.01
A34: 244 | C34: 擦机布 | H34: 公斤 | I34: 50 | L34: 13.50 | M34: 675.00 | O34: 2026.01
A35: 245 | C35: 老虎钳 | D35: SATA 70303A 8寸 | H35: 把 | I35: 2 | L35: 65.00 | M35: 130.00 | O35: 2026.01
A36: 246 | C36: 螺丝刀 | D36: 一字头、十字头、各1把、总长度200mm | H36: 把 | I36: 2 | L36: 27.30 | M36: 54.60 | O36: 2026.01
A37: 247 | C37: 筛网1100×900mm | D37: 每套12件，筛孔1.2*1.2mm，密封材质发泡条 | H37: 套 | I37: 1 | L37: 22000.00 | M37: 22000.00 | O37: 2026.01
A38: 248 | C38: 机油壶 | D38: 250mL | H38: 个 | I38: 2 | L38: 220.00 | M38: 440.00 | O38: 2026.01
A39: 249 | C39: 安瓿球 | D39: 双丝（薄一些） | H39: 个 | I39: 2000 | L39: 2.20 | M39: 4400.00 | O39: 2026.01
A40: 250 | C40: 三乙醇胺 | D40: AR500ml | H40: 瓶 | I40: 5 | L40: 100.00 | M40: 500.00 | O40: 2026.01
A41: 251 | C41: 偏钒酸钠 | D41: AR25g | H41: 瓶 | I41: 10 | L41: 100.00 | M41: 1000.00 | O41: 2026.01
A42: 252 | C42: 微型蠕动泵 | D42: 货号511.1005.155 AKF-V6 | H42: 个 | I42: 4 | L42: 460.00 | M42: 1840.00 | O42: 2026.01
A43: 253 | C43: 减速电机泵头 | D43: 货号514.4014.156 AKF-V6 | H43: 个 | I43: 4 | L43: 200.00 | M43: 800.00 | O43: 2026.01
A44: 254 | C44: 智能风阀 | H44: 个 | I44: 1 | L44: 200.00 | M44: 200.00 | O44: 2026.01
A45: 255 | C45: 三联水龙头 | H45: 个 | I45: 3 | L45: 350.00 | M45: 1050.00 | O45: 2026.01
A46: 256 | C46: 万用表方块电池 | D46: 南孚 6F22 9V | H46: 块 | I46: 5 | L46: 16.00 | M46: 80.00 | O46: 2026.01
A47: 257 | C47: 山泽多功能电话线 网线测线寻线仪 | D47: SZ-D368,耐压100V防烧，Type-C锂电直充，多功能 （寻线/对线/测线） | H47: 套 | I47: 1 | L47: 400.00 | M47: =L47*I47 -> 400.00 | O47: 2026.01
A48: 258 | C48: 防爆摄像头（筒机） | D48: 海康威视 DS-2XE6240F-XYZ 防爆 IP68级防护 | H48: 台 | I48: 2 | L48: 4500.00 | M48: 9000.00 | O48: 2026.01
A49: 259 | C49: 点对点无线投屏器 | D49: 绿联 CM625 15349 适用于投影仪 | H49: 套 | I49: 1 | L49: 1200.00 | M49: 1200.00 | O49: 2026.01
A50: 260 | C50: 会议摄像头 | D50: 海康V108 800万像素 4K高清、需要三脚架 | H50: 套 | I50: 1 | L50: 3600.00 | M50: 3600.00 | O50: 2026.01
A51: 261 | C51: 领夹麦克风 | D51: 大疆DJI Mic Mini 全能版、必须兼容电脑、手机、相机 | H51: 套 | I51: 1 | L51: 300.00 | M51: 300.00 | O51: 2026.01
A52: 262 | C52: 会议全向麦克风 | D52: 海康 VS3 | H52: 套 | I52: 1 | L52: 1800.00 | M52: 1800.00 | O52: 2026.01
A53: 263 | C53: 激光笔 | D53: 绿光 、大功率、可以在LED屏幕拼接屏上显示 | H53: 只 | I53: 10 | L53: 100.00 | M53: 1000.00 | O53: 2026.01
A54: 264 | C54: 章鼓合成润滑油 | D54: 章鼓 ZG-80罗茨风机专用油、3kg/桶 | H54: 桶 | I54: 4 | L54: 700.00 | M54: 2800.00 | O54: 2026.01
A55: 265 | C55: 46#液压油 | D55: 46#抗磨液压油 170kg/桶 | H55: 桶 | I55: 1 | L55: 2850.00 | M55: 2850.00 | O55: 2026.01
A56: 266 | C56: 0-W40合成油 | D56: 美孚0W40全合成润滑油、3.5kg/桶 | H56: 桶 | I56: 4 | L56: 400.00 | M56: 1600.00 | O56: 2026.01
A57: 267 | C57: 通用锂基润滑脂 | D57: 00号（GP-A）、15Kg/桶 | H57: 桶 | I57: 10 | L57: 390.00 | M57: 3900.00 | O57: 2026.01
A58: 268 | C58: 抗磨液压油 | D58: 68#、170Kg/桶 | H58: 桶 | I58: 1 | L58: 2900.00 | M58: 2900.00 | O58: 2026.01
A59: 269 | C59: 中负荷工业齿轮油 | D59: CKC-N220、16Kg/桶 | H59: 桶 | I59: 2 | L59: 255.00 | M59: 510.00 | O59: 2026.01
A60: 270 | C60: 高温二硫化钼润滑脂 | D60: 2#、10Kg/桶 | H60: 桶 | I60: 2 | L60: 450.00 | M60: 900.00 | O60: 2026.01
A61: 271 | C61: 钙基润滑脂 | D61: 昆仑牌3号、15kg/桶 | H61: 桶 | I61: 1 | L61: 600.00 | M61: 600.00 | O61: 2026.01
A62: 272 | C62: 机械密封 | D62: HPA50--3315 | H62: 套 | I62: 2 | L62: 7500.00 | M62: 15000.00 | O62: 2026.01
A63: 273 | C63: 闸阀 | D63: Z41W-25P DN80 | H63: 只 | I63: 1 | L63: 2400.00 | M63: 2400.00 | O63: 2026.01
A64: 274 | C64: Y型保温截止阀 | D64: BJ4516PL DN80/DN100 | H64: 只 | I64: 1 | L64: 5800.00 | M64: 5800.00 | O64: 2026.01
A65: 275 | C65: 截止阀 | D65: J41W-16P DN65 PN1.6 | H65: 只 | I65: 2 | L65: 1700.00 | M65: 3400.00 | O65: 2026.01
A66: 276 | C66: 90°弯头 | D66: DN80 | H66: 只 | I66: 6 | L66: 106.00 | M66: 636.00 | O66: 2026.01
A67: 277 | C67: 双头螺栓 | D67: M12X70 | H67: 套 | I67: 160 | L67: 3.20 | M67: 512.00 | O67: 2026.01
A68: 278 | C68: 四氟膨胀条 | D68: Φ5 | H68: kg | I68: 30 | L68: 180.00 | M68: 5400.00 | O68: 2026.01
A69: 279 | C69: 轴承 | D69: 7310 | H69: 盘 | I69: 6 | L69: 1260.00 | M69: 7560.00 | O69: 2026.01
A70: 280 | C70: 轴承 | D70: NU310 | H70: 盘 | I70: 6 | L70: 1400.00 | M70: 8400.00 | O70: 2026.01
A71: 281 | C71: 托辊 | D71: Φ57×900×990 | H71: 只 | I71: 29 | L71: 750.00 | M71: 21750.00 | O71: 2026.01
A72: 282 | C72: 三角皮带 | D72: B1550 | H72: 条 | I72: 4 | L72: 550.00 | M72: 2200.00 | O72: 2026.01
A73: 283 | C73: 焊条 | D73: TIG-C4 2.5 | H73: kg | I73: 30 | L73: 55.00 | M73: 1650.00 | O73: 2026.01
A74: 284 | C74: 集装机封(驱动端) | D74: 泵型号：MA450-100×7D位号：220-P-1104A/B, 厂家：大连利欧华能泵业 | H74: 套 | I74: 1 | L74: 24540.00 | M74: 24540.00 | O74: 2026.01
A75: 285 | C75: 集装机封（非驱动端） | D75: 泵型号：MA450-100×7D位号：220-P-1104A/B, 厂家：大连利欧华能泵业 | H75: 套 | I75: 1 | L75: 24540.00 | M75: 24540.00 | O75: 2026.01
A76: 286 | C76: 轴瓦 | D76: 泵型号：MA450-100×7D位号：220-P-1104A/B, 厂家：大连利欧华能泵业 | H76: 套 | I76: 1 | L76: 16800.00 | M76: 16800.00 | O76: 2026.01
A77: 287 | C77: 滤芯 | D77: 型号：STZX2-BH-25×20, 厂家：新乡市海特滤器有限公司 | H77: 件 | I77: 2 | L77: 1000.00 | M77: 2000.00 | O77: 2026.01
A78: 288 | C78: 滤芯 | D78: 型号：TZX2-63×30W, 厂家：新乡市海特滤器有限公司 | H78: 件 | I78: 2 | L78: 1000.00 | M78: 2000.00 | O78: 2026.01
A79: 289 | C79: 下调心托辊D=89 | D79: 输送机型号：DTⅡ（A）型带式输送机 带宽800 厂家：安徽永生机械股份有限公司 图号：DTⅡ（A）80C361M | H79: 件 | I79: 20 | L79: 320.00 | M79: 6400.00 | O79: 2026.01
A80: 290 | C80: 平行下托辊D=89 | D80: 输送机型号：DTⅡ（A）型带式输送机 带宽800 厂家：安徽永生机械股份有限公司 图号：DTⅡ（A）80C360 | H80: 件 | I80: 40 | L80: 190.00 | M80: 7600.00 | O80: 2026.01
A81: 291 | C81: 填料 | D81: 液压隔膜计量泵型号：LJMZL1200/1.0 流量：1200L/H 压力：10Bar 功率：1.5 kW 位号：180-P-1009A 生产日期：2022-11-25 厂家：杭州莱纳斯工业设备有限公司 序号：62 代号：LJZ01-033 名称：填料 | H81: 套 | I81: 3 | L81: 980.00 | M81: 2940.00 | O81: 2026.01
A82: 292 | C82: 0型圈 | D82: 液压隔膜计量泵型号：LJMZL1200/1.0 流量：1200L/H 压力：10Bar 功率：1.5 kW 位号：180-P-1009A 生产日期：2022-11-25 厂家：杭州莱纳斯工业设备有限公司 序号：55 代号：GB 名称：0型圈 | H82: 件 | I82: 10 | L82: 56.00 | M82: 560.00 | O82: 2026.01
A83: 293 | C83: 轴承 | D83: 32208 | H83: 件 | I83: 4 | L83: 350.00 | M83: 1400.00 | O83: 2026.01
A84: 294 | C84: 轴承 | D84: 51217 | H84: 件 | I84: 2 | L84: 1550.00 | M84: 3100.00 | O84: 2026.01
A85: 295 | C85: 轴承 | D85: 6016 | H85: 件 | I85: 4 | L85: 420.00 | M85: 1680.00 | O85: 2026.01
A86: 296 | C86: 补油阀 | D86: 液压隔膜计量泵型号：LJMZL1200/1.0 流量：1200L/H 压力：10Bar 功率：1.5 kW 位号：180-P-1009A 生产日期：2022-11-25 厂家：杭州莱纳斯工业设备有限公司 序号：64 名称：补油阀 | H86: 只 | I86: 2 | L86: 1000.00 | M86: 2000.00 | O86: 2026.01
A87: 297 | C87: 弯头 | D87: 6″150LB 90度 | H87: 件 | I87: 2 | L87: 130.00 | M87: 260.00 | O87: 2026.01
A88: 298 | C88: 弯头 | D88: 6″150LB 45度 | H88: 件 | I88: 2 | L88: 100.00 | M88: 200.00 | O88: 2026.01
A89: 299 | C89: 弯头 | D89: 5″150LB 90度 | H89: 件 | I89: 4 | L89: 106.00 | M89: 424.00 | O89: 2026.01
A90: 300 | C90: 等径三通 | D90: 5″150LB 90度 | H90: 件 | I90: 4 | L90: 190.00 | M90: 760.00 | O90: 2026.01
A91: 301 | C91: 金属软管 | D91: DN200×1350，一边为固定法兰，另一边为活套法兰 螺孔Φ18， 8孔，眼心距280 | H91: 根 | I91: 2 | L91: 5800.00 | M91: 11600.00 | O91: 2026.01
A92: 302 | C92: 固定筛板T型螺栓 | D92: T20 厂家：青岛正大正电力环保设备有限公司 振动脱水筛型号：180-X-1001 | H92: 条 | I92: 40 | L92: 170.00 | M92: 6800.00 | O92: 2026.01
A93: 303 | C93: 机械密封 | D93: 型号：CSB-WY4-55/12 位号：170-P-1004B 厂家：北京航天石化技术装备工程公司 | H93: 套 | I93: 2 | L93: 10000.00 | M93: 20000.00 | O93: 2026.01
A94: 304 | C94: 金属软管 | D94: DN65PN16-304L=1200 | H94: 根 | I94: 3 | L94: 1800.00 | M94: 5400.00 | O94: 2026.01
A95: 305 | C95: 法兰 | D95: DN40-150LB温度≤425℃ | H95: 件 | I95: 4 | L95: 65.00 | M95: 260.00 | O95: 2026.01
A96: 306 | C96: 球阀 | D96: Q11T-DN20PN1.6 | H96: 只 | I96: 20 | L96: 360.00 | M96: 7200.00 | O96: 2026.01
A97: 307 | C97: 滤芯 | D97: 型号：SBL-150LBC压力CL150通经80温度≤80℃ 厂家：浙江瑞通阀门厂 | H97: 件 | I97: 2 | L97: 600.00 | M97: 1200.00 | O97: 2026.01
A98: 308 | C98: 缠绕垫 | D98: Ø95×Ø113×4.5 | H98: 件 | I98: 10 | L98: 26.00 | M98: 260.00 | O98: 2026.01
A99: 309 | C99: 缠绕垫 | D99: DN25-150LB | H99: 件 | I99: 10 | L99: 10.00 | M99: 100.00 | O99: 2026.01
A100: 310 | C100: 闸阀 | D100: DN25-150LB | H100: 只 | I100: 4 | L100: 390.00 | M100: 1560.00 | O100: 2026.01
A101: 311 | C101: 疏水器阀盖垫 | D101: AIB5412F-DN20CL150江苏艾肯工业技术有限公司 | H101: 件 | I101: 10 | L101: 340.00 | M101: 3400.00 | O101: 2026.01
A102: 312 | C102: 疏水器阀盖垫 | D102: AIB5413F-DN20CL150江苏艾肯工业技术有限公司 | H102: 件 | I102: 10 | L102: 340.00 | M102: 3400.00 | O102: 2026.01
A103: 313 | C103: 疏水器阀盖垫 | D103: AIB5410F-DN20CL150江苏艾肯工业技术有限公司 | H103: 件 | I103: 10 | L103: 340.00 | M103: 3400.00 | O103: 2026.01
A104: 314 | C104: 缠绕垫 | D104: DN40-150LB | H104: 件 | I104: 40 | L104: 15.00 | M104: 600.00 | O104: 2026.01
A105: 315 | C105: 缠绕垫 | D105: DN40-300LB | H105: 件 | I105: 40 | L105: 20.00 | M105: 800.00 | O105: 2026.01
A106: 316 | C106: 缠绕垫 | D106: DN40-600LB | H106: 件 | I106: 20 | L106: 40.00 | M106: 800.00 | O106: 2026.01
A107: 317 | C107: 机油过滤器滤芯 | D107: 型号：31305-1143CC，RC2-410~620 厂家：上海钟精机股份有限公司 | H107: 件 | I107: 1 | L107: 750.00 | M107: 750.00 | O107: 2026.01
A108: 318 | C108: 机封 | D108: H7N-60Mafs ROC4 50/08-2.3-100 沃图水泵（上海）有限公司 | H108: 件 | I108: 1 | L108: 9282.00 | M108: 9282.00 | O108: 2026.01
A109: 319 | C109: 密封环+O型圈 | D109: Mafs ROC4 50/08-2.3-100配套 沃图水泵（上海）有限公司 | H109: 件 | I109: 1 | L109: 50694.00 | M109: 50694.00 | O109: 2026.01
A110: 320 | C110: 联轴器膜片 | D110: Mafs ROC4 50/08-2.3-100配套 沃图水泵（上海）有限公司 | H110: 件 | I110: 1 | L110: 1142.00 | M110: 1142.00 | O110: 2026.01
A111: 321 | C111: 机封 | D111: Womi NRC4 3207/2 KLLC-22 沃图水泵（上海）有限公司 | H111: 件 | I111: 1 | L111: 2000.00 | M111: =L111*I111 -> 2000.00 | O111: 2026.01
A112: 322 | C112: 联轴器膜片 | D112: Womi NRC4 3207/2 配套沃图水泵（上海）有限公司 | H112: 件 | I112: 1 | L112: 1428.00 | M112: =L112*I112 -> 1428.00 | O112: 2026.01
A113: 323 | C113: 机械密封 | D113: ZF40-3400苏尔寿 | H113: 件 | I113: 1 | L113: 17400.00 | M113: =L113*I113 -> 17400.00 | O113: 2026.01
A114: 324 | C114: 泵轴 | D114: ZF40-3400苏尔寿 | H114: 件 | I114: 1 | L114: 21600.00 | M114: =L114*I114 -> 21600.00 | O114: 2026.01
A115: 325 | C115: 叶轮 | D115: ZF40-3400苏尔寿 | H115: 件 | I115: 1 | L115: 42000.00 | M115: =L115*I115 -> 42000.00 | O115: 2026.01
A116: 326 | C116: 机械密封 | D116: ZE40-2315苏尔寿 | H116: 件 | I116: 1 | L116: 12600.00 | M116: =L116*I116 -> 12600.00 | O116: 2026.01
A117: 327 | C117: 泵轴 | D117: ZE40-2315苏尔寿 | H117: 件 | I117: 1 | L117: 18000.00 | M117: =L117*I117 -> 18000.00 | O117: 2026.01
A118: 328 | C118: 叶轮 | D118: ZE40-2315苏尔寿 | H118: 件 | I118: 1 | L118: 38400.00 | M118: =L118*I118 -> 38400.00 | O118: 2026.01
A119: 329 | C119: 机械密封 | D119: MBN40-180/12苏尔寿 | H119: 件 | I119: 1 | L119: 33600.00 | M119: =L119*I119 -> 33600.00 | O119: 2026.01
A120: 330 | C120: 泵轴 | D120: MBN40-180/12苏尔寿 | H120: 件 | I120: 1 | L120: 26400.00 | M120: =L120*I120 -> 26400.00 | O120: 2026.01
A121: 331 | C121: 叶轮 | D121: MBN40-180/12苏尔寿 | H121: 件 | I121: 1 | L121: 54000.00 | M121: =L121*I121 -> 54000.00 | O121: 2026.01
A122: 332 | C122: 机械密封 | D122: ZH150-125-315，泵厂家：三联泵业 | H122: 套 | I122: 2 | L122: 3000.00 | M122: =L122*I122 -> 6000.00 | O122: 2026.01
A123: 333 | C123: 机械密封 | D123: ASP2090-50-200(I)，泵厂家：三联泵业 | H123: 套 | I123: 2 | L123: 3000.00 | M123: =L123*I123 -> 6000.00 | O123: 2026.01
A124: 334 | C124: 机械密封 | D124: AZ40-25-160/IJ40-25-160杭州碱泵 | H124: 套 | I124: 2 | L124: 5500.00 | M124: =L124*I124 -> 11000.00 | O124: 2026.01
A125: 335 | C125: 机械密封 | D125: IJ50-32-200/IJ40-25-280杭州碱泵 | H125: 套 | I125: 2 | L125: 5500.00 | M125: =L125*I125 -> 11000.00 | O125: 2026.01
A126: 336 | C126: 机械密封 | D126: IJ100-80-160杭州碱泵 | H126: 套 | I126: 2 | L126: 9500.00 | M126: =L126*I126 -> 19000.00 | O126: 2026.01
A127: 337 | C127: 机械密封 | D127: AZ100-65-315杭州碱泵 | H127: 套 | I127: 2 | L127: 9500.00 | M127: =L127*I127 -> 19000.00 | O127: 2026.01
A128: 338 | C128: 机械密封 | D128: 150ZXL120-45-30，泵厂家：上海泉顿泵阀有限公司 | H128: 套 | I128: 2 | L128: 600.00 | M128: =L128*I128 -> 1200.00 | O128: 2026.01
A129: 339 | C129: 机械密封 | D129: 150ZXL140-45-45，泵厂家：上海泉顿泵阀有限公司 | H129: 套 | I129: 2 | L129: 600.00 | M129: =L129*I129 -> 1200.00 | O129: 2026.01
A130: 340 | C130: 轴承 | D130: SKF 22308CC/W33 | H130: 件 | I130: 2 | L130: 800.00 | M130: =L130*I130 -> 1600.00 | O130: 2026.01
A131: 341 | C131: 轴承 | D131: SKF 22310CC/W33 | H131: 件 | I131: 2 | L131: 800.00 | M131: =L131*I131 -> 1600.00 | O131: 2026.01
A132: 342 | C132: 配对轴承 | D132: SKF 7310B/DB | H132: 件 | I132: 2 | L132: 1300.00 | M132: =L132*I132 -> 2600.00 | O132: 2026.01
A133: 343 | C133: 配对轴承 | D133: SKF 7308BECBP | H133: 件 | I133: 2 | L133: 420.00 | M133: =L133*I133 -> 840.00 | O133: 2026.01
A134: 344 | C134: 配对轴承 | D134: SKF 7311BECBP | H134: 件 | I134: 2 | L134: 920.00 | M134: =L134*I134 -> 1840.00 | O134: 2026.01
A135: 345 | C135: 配对轴承 | D135: SKF 7312BECBP | H135: 件 | I135: 2 | L135: 1000.00 | M135: =L135*I135 -> 2000.00 | O135: 2026.01
A136: 346 | C136: 配对轴承 | D136: SKF 7306BECBP | H136: 件 | I136: 2 | L136: 300.00 | M136: =L136*I136 -> 600.00 | O136: 2026.01
A137: 347 | C137: #3 隔膜组件 PVC | D137: MBO180PR/MB0250PR，西安诺达机械设备有限公司 | H137: 件 | I137: 4 | L137: 9500.00 | M137: =L137*I137 -> 38000.00 | O137: 2026.01
A138: 348 | C138: 绝缘漆 | D138: 1032-1 16kg/桶 | H138: 桶 | I138: 1 | L138: 2100.00 | M138: =L138*I138 -> 2100.00 | O138: 2026.01
D139: 合计金额： | M139: 850000.00
A140: 349 | C140: ABB变频器 | D140: 型号：ACS510-01-157A-4 电压：三相380V-480V 输入频率：50～60HZ 额定电流：157A 功率：75KW | H140: 台 | I140: 1 | L140: 15500.00 | M140: =L140*I140 -> 15500.00 | O140: 2026.01
A141: 350 | C141: 多孔插座 | D141: 蓝白八位40孔无线 | H141: 只 | I141: 4 | L141: 95.00 | M141: 380.00 | O141: 2026.01
A142: 351 | C142: 轴承 | D142: RN206M | H142: 盘 | I142: 2 | L142: 50.00 | M142: 100.00 | O142: 2026.01
A143: 352 | C143: 时间继电器 | D143: CHNT JSZ3R Ith：5A Us：AC220V | H143: 个 | I143: 2 | L143: 110.00 | M143: 220.00 | O143: 2026.01
A144: 353 | C144: 时间继电器 | D144: CHNT JSZ3C-C Ith：5A Us：AC220V | H144: 个 | I144: 2 | L144: 110.00 | M144: 220.00 | O144: 2026.01
A145: 354 | C145: 轴流风机 | D145: SF-2.2kW，固定式，380V | H145: 台 | I145: 2 | L145: 950.00 | M145: 1900.00 | O145: 2026.01
A146: 355 | C146: 轴流风机 | D146: SF-2.2kW，岗位式，380V | H146: 台 | I146: 2 | L146: 950.00 | M146: 1900.00 | O146: 2026.01
A147: 356 | C147: 轴流风机 | D147: SF-750W，固定式，380V | H147: 台 | I147: 2 | L147: 950.00 | M147: 1900.00 | O147: 2026.01
A148: 357 | C148: 轴流风机 | D148: SF-750W，岗位式，380V | H148: 台 | I148: 2 | L148: 950.00 | M148: 1900.00 | O148: 2026.01
A149: 358 | C149: 高温电工白布带 | D149: 宽20mm | H149: 卷 | I149: 20 | L149: 22.00 | M149: 440.00 | O149: 2026.01
A150: 359 | C150: 风机 | D150: G112A | H150: 台 | I150: 1 | L150: 380.00 | M150: 380.00 | O150: 2026.01
A151: 360 | C151: 风机 | D151: G-180A | H151: 台 | I151: 2 | L151: 620.00 | M151: 1240.00 | O151: 2026.01
A152: 361 | C152: 电池 | D152: SUNJ ER26500H 3.6V | H152: 节 | I152: 10 | L152: 110.00 | M152: 1100.00 | O152: 2026.01
A153: 362 | C153: 温度探头 | D153: WZPM-201,-50~200℃,M8*0.75 6*18 L=5000mm | H153: 支 | I153: 2 | L153: 690.00 | M153: 1380.00 | O153: 2026.01
A154: 363 | C154: PH计 | D154: KROHNE PH8390 | H154: 支 | I154: 1 | L154: 14500.00 | M154: 14500.00 | O154: 2026.01
A155: 364 | C155: 静电除尘出料阀阀板 | D155: 公称通径：DN125, 生产厂家：常州市科建电力设备有限公司 | H155: 套 | I155: 2 | L155: 4200.00 | M155: 8400.00 | O155: 2026.01
A156: 365 | C156: 承插焊接取压截止阀 | D156: PN100、DN6，介质温度：525℃ | H156: 只 | I156: 10 | L156: 480.00 | M156: 4800.00 | O156: 2026.01
A157: 366 | C157: 自动排液器 | D157: 型号：JK20,生产厂家：川仪 | H157: 个 | I157: 1 | L157: 2400.00 | M157: 2400.00 | O157: 2026.01
A158: 367 | C158: 冷凝器 | D158: 型号：H-LNQ-JY,生产厂家：川仪 | H158: 个 | I158: 1 | L158: 5200.00 | M158: 5200.00 | O158: 2026.01
A159: 368 | C159: 气源处理器 | D159: 型号：H-F1,生产厂家：川仪 | H159: 个 | I159: 1 | L159: 11000.00 | M159: 11000.00 | O159: 2026.01
A160: 369 | C160: 电动执行机构 | D160: 型号：F-2SA3021-1GA00-1000-ZJ2A+Y01+HART,转矩/推力：150/48Nm,转速：28r/min,电源：380V,50Hz,电机功率：0.37KW,生产厂家：扬州电力设备修造厂 | H160: 台 | I160: 1 | L160: 17500.00 | M160: 17500.00 | O160: 2026.01
A161: 370 | C161: 双法兰差压变送器 | D161: EJA118E-JMSCG-917EA-WA43C1SW00-AA28/NS21/Z； 0-51.99KPa | H161: 台 | I161: 1 | L161: 21000.00 | M161: 21000.00 | O161: 2026.01
A162: 371 | C162: 双头螺栓 | D162: M12*70,配螺母两个 | H162: 套 | I162: 32 | L162: 12.00 | M162: 384.00 | O162: 2026.01
A163: 372 | C163: 金属缠绕垫 | D163: DN15PN25；介质：氧气 | H163: 片 | I163: 10 | L163: 25.00 | M163: 250.00 | O163: 2026.01
A164: 373 | C164: 三阀组 | D164: M364F-160P | H164: 个 | I164: 10 | L164: 2900.00 | M164: 29000.00 | O164: 2026.01
A165: 374 | C165: 无缝不锈钢管 | D165: Φ14*3 | H165: 米 | I165: 60 | L165: 28.00 | M165: 1680.00 | O165: 2026.01
A166: 375 | C166: 无缝不锈钢管 | D166: Φ8*1 | H166: 米 | I166: 60 | L166: 20.00 | M166: 1200.00 | O166: 2026.01
A167: 376 | C167: 不锈钢气源球阀 | D167: G1/4-φ8 | H167: 个 | I167: 10 | L167: 4200.00 | M167: 42000.00 | O167: 2026.01
A168: 377 | C168: 急停按钮防护罩 | D168: 45*30，孔径φ16mm，透明翻盖 | H168: 个 | I168: 20 | L168: 15.00 | M168: 300.00 | O168: 2026.01
A169: 378 | C169: 急停按钮防护罩 | D169: 55*55，孔径φ22mm，透明翻盖 | H169: 个 | I169: 20 | L169: 15.00 | M169: 300.00 | O169: 2026.01
A170: 379 | C170: 防爆胶泥 | H170: Kg | I170: 50 | L170: 55.00 | M170: 2750.00 | O170: 2026.01
A171: 380 | C171: 热镀锌扁钢 | D171: 宽度40mm，厚度4mm,6米/根 | H171: 根 | I171: 100 | L171: 230.00 | M171: 23000.00 | O171: 2026.01
A172: 381 | C172: 有毒气体报警器 | D172: 型号：ISD2000ECD0051BP34NPT3SADCP2X 0-100ppm 重庆金芯麦斯传感器技术有限公司 | H172: 台 | I172: 10 | L172: 5200.00 | M172: 52000.00 | O172: 2026.01
A173: 382 | C173: 报警器探头 | D173: 硫化氢；量程：0-100ppm 重庆金芯麦斯传感器技术有限公司 | H173: 个 | I173: 10 | L173: 2400.00 | M173: 24000.00 | O173: 2026.01
A174: 383 | C174: 报警器探头 | D174: 一氧化碳；量程：0-100ppm 重庆金芯麦斯传感器技术有限公司 | H174: 个 | I174: 10 | L174: 2400.00 | M174: 24000.00 | O174: 2026.01
A175: 384 | C175: 报警器探头 | D175: 氢气；量程：0-100%LEL 重庆金芯麦斯传感器技术有限公司 | H175: 个 | I175: 10 | L175: 2400.00 | M175: 24000.00 | O175: 2026.01
A176: 385 | C176: 报警器探头 | D176: 甲烷；量程：0-100%LEL 重庆金芯麦斯传感器技术有限公司 | H176: 个 | I176: 10 | L176: 2400.00 | M176: =L176*I176 -> 24000.00 | O176: 2026.01
A177: 386 | C177: 报警器探头 | D177: 氧气；量程：0-25%vol 重庆金芯麦斯传感器技术有限公司 | H177: 个 | I177: 10 | L177: 2400.00 | M177: 24000.00 | O177: 2026.01
A178: 387 | C178: 承插焊接取压截止阀 | D178: J61Y-420P,DN10，介质温度：525℃ | H178: 个 | I178: 10 | L178: 4200.00 | M178: 42000.00 | O178: 2026.01
A179: 388 | C179: 磁浮子 | D179: UHZ-517C10LRD-1000;出厂编号：23070380-2； 密度：1000kg/m3； 额定压力：2.0mpa；额定温度：-20-100℃； 上海星申仪表有限公司 | H179: 个 | I179: 1 | L179: 1500.00 | M179: 1500.00 | O179: 2026.01
A180: 389 | C180: 磁浮子 | D180: UHZ-50/C,出厂编号：2307Y0736; 密度：0.616g/cm3； 安徽天康股份有限公司 | H180: 个 | I180: 1 | L180: 1500.00 | M180: 1500.00 | O180: 2026.01
A181: 390 | C181: 磁浮子 | D181: UHZ-50/C,出厂编号：2307Y0738; 密度：0.6594g/cm3； 安徽天康股份有限公司 | H181: 个 | I181: 1 | L181: 1500.00 | M181: 1500.00 | O181: 2026.01
A182: 391 | C182: 延长电缆 | D182: 330130-080-00-CN；本特利 | H182: 根 | I182: 10 | L182: 4850.00 | M182: 48500.00 | O182: 2026.01
A183: 392 | C183: 重型敲击扳手 | D183: 34mm | H183: 把 | I183: 2 | L183: 200.00 | M183: 400.00 | O183: 2026.01
A184: 393 | C184: 硅酮免垫密封胶 | H184: 盒 | I184: 20 | L184: 220.00 | M184: 4400.00 | O184: 2026.01
A185: 394 | C185: 轴用卡簧钳 | D185: 18寸 | H185: 把 | I185: 2 | L185: 75.00 | M185: 150.00 | O185: 2026.01
A186: 395 | C186: 电动冲击钻 | D186: Bosch博世GBH4-32DFR、圆柄两坑两槽 | H186: 台 | I186: 1 | L186: 5200.00 | M186: 5200.00 | O186: 2026.01
A187: 396 | C187: 消防专用钉 | D187: 32# | H187: 个 | I187: 500 | L187: 1.00 | M187: 500.00 | O187: 2026.01
A188: 397 | C188: 电工胶带 | D188: 九头鸟、黑色 | H188: 卷 | I188: 50 | L188: 5.50 | M188: 275.00 | O188: 2026.01
A189: 398 | C189: 手持电动无刷往复锯 | D189: 德力西、 BIM双金属150金属锯条4片、 5.0Ah电池2个、快速座充充电器1个 | H189: 套 | I189: 1 | L189: 660.00 | M189: 660.00 | O189: 2026.01
A190: 399 | C190: 中水单元保安过滤器滤芯 | D190: 40"，5μm，PP大流量折叠滤芯，外压式 | H190: 支 | I190: 32 | L190: 165.00 | M190: =L190*I190 -> 5280.00 | O190: 2026.01
A191: 400 | C191: 零排单元保安过滤器滤芯 | D191: 40"，5μm，PP大流量折叠滤芯，内压式 | H191: 支 | I191: 30 | L191: 165.00 | M191: 4950.00 | O191: 2026.01
A192: 401 | C192: 一级保安过滤器滤芯 | D192: ∅150-1020-5us、加强型 | H192: 支 | I192: 96 | L192: 165.00 | M192: 15840.00 | O192: 2026.01
A193: 402 | C193: 二级保安过滤器滤芯 | D193: ∅150-1020-5us、加强型 | H193: 支 | I193: 20 | L193: 165.00 | M193: 3300.00 | O193: 2026.01
A194: 403 | C194: 微孔过滤器滤芯 | D194: ∅150-1020-5us、加强型 | H194: 支 | I194: 24 | L194: 165.00 | M194: 3960.00 | O194: 2026.01
A195: 404 | C195: 量筒 | D195: 500毫升 | H195: 个 | I195: 4 | L195: 55.00 | M195: 220.00 | O195: 2026.01
A196: 405 | C196: 钢丝软管 | D196: DN32加厚 带钢丝 50米/盘 | H196: 盘 | I196: 2 | L196: 950.00 | M196: 1900.00 | O196: 2026.01
A197: 406 | C197: 钢丝软管 | D197: DN25加厚 带钢丝 50米/盘 | H197: 盘 | I197: 2 | L197: 750.00 | M197: 1500.00 | O197: 2026.01
A198: 407 | C198: 钢丝软管 | D198: DN50加厚 带钢丝 50米/盘 | H198: 盘 | I198: 1 | L198: 1280.00 | M198: 1280.00 | O198: 2026.01
A199: 408 | C199: 钢丝软管 | D199: DN75加厚 带钢丝 | H199: 米 | I199: 30 | L199: 2000.00 | M199: 60000.00 | O199: 2026.01
A200: 409 | C200: 手持充电式电动角磨机 | D200: 大艺牌 双电4.0Ah 5801S，配充电器、电池 | H200: 台 | I200: 1 | L200: 750.00 | M200: 750.00 | O200: 2026.01
... 215 more rows
